Cogmind - Beta 10.2 @@@ ROGUE MODE // 2021.07.31 @ 22:17:05 Player: youngster Result: Self-destructed Performance ------------- Evolutions (0) 0 Regions Visited (4) 800 Robots Destroyed (20) 100 Value Destroyed (501) 501 Prototype IDs (4) 80 Alien Tech Used (0) 0 Bonus (0) 0 TOTAL SCORE: 1481 Bonus ------- None Cogmind --------- Core Integrity 47/250 Matter 300/300 Energy 100/100 System Corruption 1% Temperature Cool (0) Movement Core (50) Location -9/Mines Parts ------- > --- POWER (1) -------- (None) > --- PROPULSION (2) --- (None) > --- UTILITY (2) ------ Experimental Sensor Array > --- WEAPON (2) ------- (None) > --- INVENTORY (4) ---- Ion Engine Light Ion Engine Improved Heat Sink Structural Scanner Peak State ------------ > --- POWER ------------ Light Nuclear Core > --- PROPULSION ------- Aluminum Leg Aluminum Leg > --- UTILITY ---------- Large Storage Unit Large Storage Unit > --- WEAPON ----------- Light Assault Rifle Light Assault Rifle > --- INVENTORY -------- Ion Engine Light Ion Engine Light Fission Core Aluminum Leg Aluminum Leg Improved Heat Sink Improved Heat Sink Small Storage Unit Medium Storage Unit High-capacity Battery Structural Scanner Targeting Computer Hacking Suite Thief Drone Bay Light Assault Rifle Datajack [Rating: 12] Favorites ----------- Power Light Nuclear Core Engine Light Ion Engine Power Core Light Nuclear Core Propulsion Aluminum Leg Treads Light Treads Leg Aluminum Leg Utility Large Storage Unit Device Experimental Sensor Array Storage Large Storage Unit Weapon Light Assault Rifle Energy Gun EM Pulse Gun Ballistic Gun Light Assault Rifle Build | -11 -10 -10 -10 -9 ------- Run | Scr Mat Min Exi Min Slots Evolved . | . . . . . Power . | . . . . . Propulsion . | . . . . . Utility . | . . . . . Weapon . | . . . . . Parts Attached 22 | 7 9 5 . 1 Power 4 | 1 2 1 . . Engine 2 | 1 1 . . . Core 2 | . 1 1 . . Reactor . | . . . . . Propulsion 4 | 2 1 1 . . Treads 2 | 2 . . . . Leg 2 | . 1 1 . . Wheel . | . . . . . Hover . | . . . . . Flight . | . . . . . Utility 6 | 2 3 . . 1 Device 1 | . . . . 1 Storage 5 | 2 3 . . . Processor . | . . . . . Hackware . | . . . . . Protection . | . . . . . Artifact . | . . . . . Weapon 8 | 2 3 3 . . Energy Gun 2 | 1 1 . . . Energy Cannon . | . . . . . Ballistic Gun 6 | 1 2 3 . . Ballistic Cannon . | . . . . . Launcher . | . . . . . Special Weapon . | . . . . . Impact Weapon . | . . . . . Slashing Weapon . | . . . . . Piercing Weapon . | . . . . . Special Melee Weapon . | . . . . . Unidentified Prototypes 1 | . . . . 1 Parts Lost 9 | . 3 5 . 1 Power 2 | . 1 1 . . Propulsion 2 | . 1 1 . . Utility . | . . . . . Weapon 5 | . 1 3 . 1 Highest Loss Streak 3 | . 3 2 . 1 Average Slot Usage (%) 97 | . 98 98 100 82 Engine 5 | . 7 8 . . Core 7 | . 5 4 14 11 Treads 11 | . 25 8 . . Leg 15 | . 1 19 28 22 Storage 27 | . 28 28 28 22 Energy Gun 4 | . 11 2 . . Ballistic Gun 22 | . 15 25 28 21 Naked Turns 16 | . . . . 16 Heaviest Build 41 | 17 41 39 39 39 Greatest Support 40 | 40 40 20 20 20 Greatest Overweight (x) 3 | 1 1 3 1 1 Average Overweight (x) . | . . 1 1 . Largest Inventory Capacity 16 | 8 16 16 16 16 Average Capacity 14 | 7 14 16 16 13 Most Carried 16 | 4 14 16 16 16 Average Carried 13 | 1 10 14 16 13 Final Capacity 16 | 8 16 16 16 16 Final Carried 16 | 4 14 16 16 16 Class Distribution -------------------- 100% | Mutant Dominant Class ---------------- Mutant | -10/Materials Mutant | -10/Mines Mutant | -10/Exiles Mutant | -9/Mines Resources | -11 -10 -10 -10 -9 ----------- Run | Scr Mat Min Exi Min Matter Collected 538 | 260 134 141 . 3 Remotely . | . . . . . Salvage Created 715 | 77 403 232 . 3 Parts 39 | 1 24 14 . . Haulers Intercepted . | . . . . . Recyclers Shooed 1 | . . . . 1 Parts Field Recycled . | . . . . . Retrieved Matter . | . . . . . Parts Self-Destructed . | . . . . . Prevented . | . . . . . Kills | -11 -10 -10 -10 -9 ------- Run | Scr Mat Min Exi Min Combat Hostiles Destroyed 17 | . 9 7 . 1 Melee 1 | . . . . 1 Guns 15 | . 8 7 . . AOE 1 | . 1 . . . Classes Destroyed 6 | 1 4 . . 1 Worker 1 | . 1 . . . Recycler 2 | 1 1 . . . Operator 1 | . 1 . . . Swarmer 6 | . 3 3 . . Grunt 10 | . 6 4 . . Assembled 1 | . . . . 1 Best Kill Streak 4 | 1 4 1 . 1 Combat Bots Only 3 | . 3 1 . 1 Max Kills in Single Turn 2 | 1 2 1 . 1 Gunslinging 1 | . 1 . . . Exploded 1 | . 1 . . . Melee 1 | . . . . 1 Uniques/NPCs Destroyed . | . . . . . Combat | -11 -10 -10 -10 -9 -------- Run | Scr Mat Min Exi Min Damage Taken 1196 | . 599 531 . 66 Core 203 | . 58 115 . 30 Absorbed by Shields . | . . . . . Core Remaining (%) 100 | 100 . . . . Volleys Fired 66 | . 26 39 . 1 Largest 2 | . 2 2 . 2 Hottest 60 | . 60 60 . 40 Shots Fired 130 | . 52 76 . 2 Gun 130 | . 52 76 . 2 Cannon . | . . . . . Launcher . | . . . . . Special . | . . . . . Kinetic 105 | . 36 67 . 2 Thermal . | . . . . . Explosive . | . . . . . Electromagnetic 25 | . 16 9 . . Robot Hit Streak 18 | . 18 7 . 1 Robot Miss Streak 9 | . 9 5 . 1 Penetration Max . | . . . . . Secondary Targets 2 | . 2 . . . Max Gunslinging Chain 1 | . 1 . . . Shots Hit Robots 79 | . 30 48 . 1 Core Hits 40 | . 19 17 . 4 Critical Hits 1 | . 1 . . . Critical Kills . | . . . . . Critical Parts Destroyed 1 | . 1 . . . Melee Attacks . | . . . . . Impact . | . . . . . Slashing . | . . . . . Piercing . | . . . . . Sneak Attacks . | . . . . . Combat Hostiles . | . . . . . Follow-up Attacks . | . . . . . Damage Inflicted 1001 | 3 546 424 . 28 Guns 808 | . 381 421 . 6 Cannons . | . . . . . Explosions 165 | . 165 . . . Melee . | . . . . . Ramming 28 | 3 . 3 . 22 Kinetic 543 | . 230 307 . 6 Thermal 165 | . 165 . . . Explosive . | . . . . . Electromagnetic 265 | . 151 114 . . Impact . | . . . . . Slashing . | . . . . . Piercing . | . . . . . Highest Corruption 1 | . . . . 1 Average Corruption 1 | . . . . 1 Corruption Purged . | . . . . . Effects 1 | . . . . 1 Message Errors 1 | . . . . 1 Overload Shots . | . . . . . Overflow Damage . | . . . . . Projectiles . | . . . . . Explosions . | . . . . . Melee . | . . . . . Knockbacks . | . . . . . Impact . | . . . . . Kinetic . | . . . . . Secondary . | . . . . . Self-Inflicted Damage 53 | . 42 1 . 10 Shots 2 | . 2 . . . Rammed 8 | 2 . 1 . 5 Targets Rammed 9 | 3 . 1 . 5 Kicked . | . . . . . Crushed 1 | 1 . . . . Highest Temperature 76 | . 69 76 . 4 Average Temperature 25 | . 23 29 . 3 Received Heat Transfer 294 | . 111 183 . . Siege Activations . | . . . . . Robots Corrupted . | . . . . . Combat Hostiles . | . . . . . Parts Fried . | . . . . . Impact Corruptions . | . . . . . Robots Melted . | . . . . . Combat Hostiles . | . . . . . Parts Melted . | . . . . . Heat Transferred 150 | . 150 . . . Parts Sabotaged . | . . . . . Parts Stolen . | . . . . . Parts Stripped . | . . . . . Power Chain Reactions 2 | . 2 . . . Missiles Intercepted . | . . . . . Alert | -11 -10 -10 -10 -9 ------- Run | Scr Mat Min Exi Min Peak Influence 231 | 5 198 231 . . Initial 21 | . 3 21 . . Average 72 | 3 62 114 . . Maximum Alert Level 1 | . . 1 . . Low Security (%) 93 | 100 100 84 . 100 Level 1 6 | . . 15 . . Level 2 . | . . . . . Level 3 . | . . . . . Level 4 . | . . . . . Level 5 . | . . . . . High Security . | . . . . . Max Security . | . . . . . Squads Dispatched 1 | . 1 . . . Investigation . | . . . . . Extermination . | . . . . . Reinforcement 1 | . 1 . . . Assault . | . . . . . Garrison . | . . . . . Intercept . | . . . . . Construction Impeded . | . . . . . Haulers Reinforced . | . . . . . Stealth | -11 -10 -10 -10 -9 --------- Run | Scr Mat Min Exi Min Distress Signals 1 | . . . . 1 Communications Jammed . | . . . . . Distress Signals . | . . . . . Times Spotted 28 | . 11 10 . 7 Peak Tracking Total 4 | . 4 4 . 3 Tactical Retreats 5 | . . 3 . 2 Traps | -11 -10 -10 -10 -9 ------- Run | Scr Mat Min Exi Min Traps Triggered 1 | . 1 . . . Indirectly . | . . . . . Trap Hack Attempts . | . . . . . Triggered . | . . . . . Disarmed . | . . . . . Reprogrammed . | . . . . . Reused . | . . . . . Traps Extracted . | . . . . . Installed . | . . . . . Triggered . | . . . . . Exploded 1 | . . . . 1 Machines | -11 -10 -10 -10 -9 ---------- Run | Scr Mat Min Exi Min Machines Disabled 2 | . 2 . . . Max in Single Turn 1 | . 1 . . . Machines Sabotaged . | . . . . . Garrisons Compromised . | . . . . . Overloaded Fab Kills . | . . . . . Fab Network Shutdowns . | . . . . . Hacking | -11 -10 -10 -10 -9 --------- Run | Scr Mat Min Exi Min Machines Accessed 6 | . 3 2 1 . Terminals 4 | . 3 1 . . Fabricators . | . . . . . Repair Stations . | . . . . . Recycling Units . | . . . . . Scanalyzers . | . . . . . Garrison Access . | . . . . . Total Hacks 14 | . 10 3 1 . Successful 7 | . 4 2 1 . Failed 7 | . 6 1 . . Catastrophic . | . . . . . Database Lockouts . | . . . . . Manual . | . . . . . Terminals 12 | . 10 2 . . Fabricators . | . . . . . Repair Stations . | . . . . . Recycling Units . | . . . . . Scanalyzers . | . . . . . Garrison Access . | . . . . . Terminal Hacks 7 | . 4 2 1 . Record 1 | . . . 1 . Prototype ID Bank 2 | . 2 . . . Open Door 1 | . . 1 . . Hauler Manifests 2 | . 2 . . . Zone Layout 1 | . . 1 . . Fabricator Hacks . | . . . . . Repair Station Hacks . | . . . . . Recycling Unit Hacks . | . . . . . Scanalyzer . | . . . . . Garrison Access Hacks . | . . . . . Unauthorized Hacks . | . . . . . Terminals . | . . . . . Fabricators . | . . . . . Repair Stations . | . . . . . Recycling Units . | . . . . . Scanalyzers . | . . . . . Garrison Access . | . . . . . Data Cores Recovered . | . . . . . Used . | . . . . . Hacking Detections 2 | . 1 1 . . Full Trace Events . | . . . . . Feedback Events . | . . . . . Feedback Blocked . | . . . . . Robot Schematics Acquired . | . . . . . Robots Built . | . . . . . Matter . | . . . . . Time . | . . . . . Total Robot Build Rating . | . . . . . Part Schematics Acquired . | . . . . . Parts Built . | . . . . . Matter . | . . . . . Time . | . . . . . Total Part Build Rating . | . . . . . Parts Repaired . | . . . . . Time . | . . . . . Parts Recycled . | . . . . . Recycled Matter . | . . . . . Retrieved Matter . | . . . . . Retrieved Components . | . . . . . Parts Scanalyzed . | . . . . . Part Schematics Acquired . | . . . . . Parts Damaged . | . . . . . Bothacking | -11 -10 -10 -10 -9 ------------ Run | Scr Mat Min Exi Min Used RIF Installer . | . . . . . Robots Hacked . | . . . . . Non-combat . | . . . . . Combat . | . . . . . Robot Hacks Applied . | . . . . . Relay Couplers Released . | . . . . . Robots Rewired . | . . . . . Allies Hacked . | . . . . . Hacks Repelled . | . . . . . Allies | -11 -10 -10 -10 -9 -------- Run | Scr Mat Min Exi Min Total Allies . | . . . . . Largest Group . | . . . . . Highest-Rated Group . | . . . . . Highest-Rated Ally . | . . . . . Total Orders . | . . . . . Ally Attacks . | . . . . . Total Damage . | . . . . . Kills . | . . . . . Allies Corrupted . | . . . . . Allies Melted . | . . . . . Intel | -11 -10 -10 -10 -9 ------- Run | Scr Mat Min Exi Min Robot Analysis Total . | . . . . . Derelict Logs Recovered 1 | . . 1 . . Drone Launches . | . . . . . Drone Recoveries . | . . . . . Exploration | -11 -10 -10 -10 -9 ------------- Run | Scr Mat Min Exi Min Turns Passed 1823 | 82 615 564 401 161 Spaces Moved 1000 | 43 294 263 267 133 Core 60 | 6 . . . 54 Treads 461 | 37 294 130 . . Legs 479 | . . 133 267 79 Wheels . | . . . . . Hover . | . . . . . Flight . | . . . . . Fastest Speed 50 | 50 160 150 150 50 Average Speed 155 | 149 174 165 150 109 Slowest Speed 210 | 160 180 210 150 150 Overloaded Moves . | . . . . . Propulsion Burnouts . | . . . . . Robots Hopped . | . . . . . Cave-ins Triggered . | . . . . . Exploration Rate (%) 38 | 4 40 56 68 23 Regions Visited 4 Branch Regions 3 Pre-discovered Areas . | . . . . . Known Exits Taken . | . . . . . Unknown Exits Taken 4 | 1 1 1 1 . Scrap Searched . | . . . . . Spaces Dug . | . . . . . Terrain Destroyed 10 | . 10 . . . Melee . | . . . . . Projectile . | . . . . . AOE 10 | . 10 . . . Terrain Rammed . | . . . . . Walls Destroyed . | . . . . . Machines Disabled . | . . . . . Actions | -11 -10 -10 -10 -9 --------- Run | Scr Mat Min Exi Min Total 1144 | 56 345 329 268 146 Wait 27 | . 9 12 . 6 Move 996 | 42 293 262 266 133 Hop . | . . . . . Pick Up 18 | 4 6 7 1 . Fast Attach 14 | 7 3 3 . 1 Attach 4 | . 2 2 . . Detach 2 | . 2 . . . Swap 4 | . 4 . . . Drop 4 | . . 3 1 . Fire 66 | . 26 39 . 1 Melee . | . . . . . Ram 5 | . . . . 5 Kick 1 | . . 1 . . Crush 3 | 3 . . . . Escape Stasis . | . . . . . Rewire . | . . . . . Trap . | . . . . . Miscellaneous . | . . . . . Route ------- -11/Scrapyard -10/Materials (discovered 2 exits: [*Mat] / *Min) -10/Mines (discovered 2 exits: [*Mat] / *Exi) -10/Exiles -9/Mines History --------- Turn | Location | Event 11 | -11/Scrapyard | Discovered new exit (range 15) 83 | -11/Scrapyard | Entered Materials 303 | -10/Materials | Build established: Mutant 472 | -10/Materials | Discovered new exit (range 16) 625 | -10/Materials | Lost 3 parts (1p1n1w) 684 | -10/Materials | Discovered new exit (range 9) 698 | -10/Materials | Entered Mines 849 | -10/Mines | Core integrity fell below 50% 923 | -10/Mines | Found the Drone Emporium 929 | -10/Mines | Found Prototype Device 1094 | -10/Mines | Discovered new exit (range 5) 1123 | -10/Mines | Learned 4 Materials zone layouts 1159 | -10/Mines | Found a hidden stash of uninstalled traps 1255 | -10/Mines | Deemed a non-threat by the Exiles lab entrance 1256 | -10/Mines | Discovered new exit (range 5) 1262 | -10/Mines | Entered Exiles 1262 | -10/Exiles | Found Exiles lab abandoned 1651 | -10/Exiles | Discovered new exit (range 10) 1663 | -10/Exiles | Entered Mines 1686 | -9/Mines | Met a Derelict bent on vengeance 1718 | -9/Mines | Assembled infested the area 1791 | -9/Mines | Released all parts (6) 1806 | -9/Mines | Found a damaged Exp. Sensor Array with a note attached 1807 | -9/Mines | Found Prototype Device 1807 | -9/Mines | Identified Exp. Sensor Array 1824 | -9/Mines | Self-destructed Last Messages --------------- 01791_ Released Lgt. Assault Rifle. 01791_ K-01 Serf collects debris. 01800_ ESPYVESHU&M33=LQ 01823_ Slammed into S-10 Pest. Map ----- +----------------------------------------------------+ | ?????????????????????????????????????????????????? | | ?????????????????????????????????????????????????? | | ?????????????????????????????????????????????????? | | ?????????????????????????????????????????????????? | | ?????????????????????????????????????????????????? | | ??????????????????????????????????????????????#### | | ??????????????????????????????????????????????# | | ??????????????????????????????????????????????# ## | | ?????????????????????????????????????????????????? | | ?????????????????????????????????????????????????? | | ????????????????????????????????????????########?? | | ?????????????????????????????????????#### ##? | | ????????????????????????????????????## #? | | ????????????????????????????????????# #? | | ????????????????????????????????????# ### ##? | | ????????????????????????????????????# #?#### ##?? | | ????????????????????????????????????# #????# #??? | | ????????????????????????????????????#?#????# #??? | | ????????????????????????????????????# #????# #??? | | ????????????????????????????????????# #????# #??? | | ?????????????????????????????????#### #????# #??? | | ?????????????????????????????????# ? #????# #??? | | ?????????????????????????????????# ####????# #### | | ?????????????????????????????????# #???????# | | ??????????????????????############ #???????# | | ??????????????????????# s@s r #???????####### | | ??????????????? s ############?????????????? | | ?????????????# ###???????????????????????????? | | ?????????????# ??????????????????????????????????? | | ?????????????????????????????????????????????????? | | ?????????????????????????????????????????????????? | | ?????????????????????????????????????????????????? | | ?????????????????????????????????????????????????? | | ?????????????????????????????????????????????????? | | ?????????????????????????????????????????????????? | | ?????????????????????????????????????????????????? | | ?????????????????????????????????????????????????? | | ?????????????????????????????????????????????????? | | ?????????????????????????????????????????????????? | | ?????????????????????????????????????????????????? | | ?????????????????????????????????????????????????? | | ?????????????????????????????????????????????????? | | ?????????????????????????????????????????????????? | | ?????????????????????????????????????????????????? | | ?????????????????????????????????????????????????? | | ?????????????????????????????????????????????????? | | | | | | | | | +----------------------------------------------------+ Best States ------------- Heat Dissipation 25 Energy Generation 14 Energy Capacity 250 Matter Stores 300 Matter Capacity 300 Sight Range 16 Robot Scan Range 30 Terrain Scan Density 10 Evasion (%) 50 Recoil Reduction 2 Item Schematics ----------------- None Robot Schematics ------------------ None Fabricated ------------ Nothing Alien Tech Used ----------------- None Achievements -------------- None Challenges ------------ None Game ------ Seed InsulatedFissionCarapace Manual? 0 Play Time 00:12:55 Cumulative 40.7 hours Start 2021.07.31 @ 21:34:38 End 2021.07.31 @ 22:17:05 Sessions 3 Manual Loads 0 Difficulty Rogue Special Mode None Game No. 31 Rogue 31 Adventurer 0 Explorer 0 Win Type - Total 0 Types 0/0/0/0/0/0/0/0/0 Lore% 29 Gallery% 49 Achievement% 31 Wizard Run 0 Options --------- ASCII 0 Keyboard 1 Movement Vi Keybinds 0 Fullscreen 2 Font 18/Cog Map View 76x50 Tactical HUD 1 Map Filters NONE Filters NONE Steam 0 RUN: c02d32b2-5a4f-430f-a57a-03e33231a695